bitfinex/quotes_SOLUSD_20250728
["timestamp","ask_amount","ask_price","bid_price","bid_amount"]
[1753677623610,26.0,193.03,192.99,0.85]
[1753677623611,4.81677851,193.03,192.99,0.85]
[1753677623794,4.81677851,193.03,193.0,0.65]
[1753677624002,4.81677851,193.05,193.0,0.65]
[1753677624323,4.81677851,193.06,193.0,5.75110165]
[1753677624604,4.81677851,193.06,193.01,1.45243101]
[1753677624809,4.81677851,193.06,193.02,0.65]
[1753677625384,4.81677851,193.06,193.02,5.83074761]
[1753677625585,4.81677851,193.06,193.02,5.18074761]
[1753677625810,4.81677851,193.06,193.03,0.69]
[1753677626215,4.84677851,193.07,193.03,0.69]
[1753677627613,4.81677851,193.06,193.03,0.69]
[1753677627817,4.84677851,193.07,193.03,0.69]
[1753677629207,4.81677851,193.06,193.03,0.69]
[1753677629997,4.81677851,193.05,193.04,0.69]
[1753677630916,4.81677851,193.06,193.04,0.69]
[1753677631105,4.81677851,193.06,193.01,93.76538923]
[1753677631420,4.81677851,193.06,193.05,0.69]
[1753677635626,0.03,193.07,193.05,0.69]
[1753677635835,4.81677851,193.06,193.05,0.69]
[1753677636305,0.03,193.07,193.05,0.69]
[1753677636507,4.81677851,193.06,193.05,0.69]
[1753677639342,0.03,193.07,193.05,0.69]
[1753677640303,0.03,193.07,193.05,5.86981339]
[1753677640700,0.03,193.07,193.06,0.69]
[1753677642628,0.03,193.07,193.06,5.86973686]
[1753677643309,0.03,193.07,193.06,0.69]
[1753677643908,5.54677851,193.07,193.02,0.69]
[1753677644114,4.81677851,193.05,193.02,0.69]
[1753677645629,4.81677851,193.04,193.02,0.69]
[1753677645831,4.81677851,193.03,193.02,26.0]
[1753677646133,4.81677851,193.04,193.02,26.0]
[1753677646832,4.81677851,193.05,193.03,0.69]
[1753677647410,4.81677851,193.04,193.03,0.69]
[1753677648009,4.81677851,193.04,193.02,26.0]
[1753677648232,4.81677851,193.04,193.02,26.69]
[1753677648536,4.81677851,193.03,193.0,36.44]
[1753677648749,4.81677851,193.01,192.99,0.2]
[1753677648932,4.81677851,193.0,192.99,0.2]
[1753677650313,4.81677851,193.01,192.99,0.2]
[1753677651240,4.81677851,193.02,192.99,0.89]
[1753677652324,5.88028284,193.04,192.99,0.89]
[1753677652325,4.81677851,193.01,192.99,0.89]
[1753677654252,4.81677851,193.02,193.0,0.69]
[1753677654533,4.81677851,193.02,193.01,0.69]
[1753677654911,4.81677851,193.02,192.99,0.9]
[1753677655113,4.81677851,193.02,193.0,0.7]
[1753677657239,4.81677851,193.01,192.99,0.2]
[1753677657463,4.81677851,193.0,192.99,36.64]
[1753677658142,10.65812566,193.0,192.99,0.2]
[1753677658623,15.47490417,193.0,192.99,0.2]
[1753677659141,10.65812566,193.0,192.99,0.2]
[1753677663860,26.0,193.04,192.99,10.8981857]
[1753677664028,0.03,193.07,193.02,26.0]
[1753677664224,0.03,193.07,193.04,4.81677851]
[1753677664437,0.03,193.07,193.06,26.0]
[1753677664627,0.03,193.07,193.06,30.81677851]
[1753677664830,0.03,193.07,193.06,31.51677851]
[1753677665027,0.03,193.07,193.06,48.58578562]
[1753677666051,0.03,193.07,193.06,42.74406]
[1753677666422,0.03,193.07,193.06,37.56432314]
[1753677666622,0.03,193.07,193.06,37.28]
[1753677666828,0.03,193.07,193.06,36.58]
[1753677667457,4.84677851,193.07,193.05,26.0]
[1753677667649,4.81677851,193.06,193.04,36.58]
[1753677667952,4.81677851,193.05,193.04,36.58]
[1753677668533,4.81677851,193.05,193.02,0.7]
[1753677668850,4.81677851,193.03,193.02,36.58]
[1753677669238,5.47677851,193.03,192.99,0.2]
[1753677669449,5.17975493,193.06,192.99,0.2]
[1753677669450,4.81677851,193.0,192.99,0.2]
[1753677671958,0.03,193.07,192.99,42.70160509]
[1753677672139,0.03,193.07,193.03,26.0]
[1753677672456,0.03,193.07,193.06,4.81677851]
[1753677672656,0.03,193.07,193.06,26.80229682]
[1753677672858,0.03,193.07,193.06,32.31907533]
[1753677673934,0.03,193.07,193.06,37.49881219]
[1753677674252,0.03,193.07,193.06,26.0]
[1753677675040,0.03,193.07,193.04,0.51802735]
[1753677675240,0.03,193.07,193.05,0.7]
[1753677675654,0.03,193.07,193.06,0.7]
[1753677676862,0.03,193.07,193.04,26.0]
[1753677677164,0.03,193.07,193.05,0.7]
[1753677677461,0.03,193.07,193.04,26.0]
[1753677677760,0.03,193.07,193.05,0.7]
[1753677677951,0.03,193.07,193.05,6.1642106]
[1753677678260,0.03,193.07,193.06,8.53578008]
[1753677678465,0.03,193.07,193.06,9.23578008]
[1753677678840,0.03,193.07,193.06,46.93578008]
[1753677679038,0.03,193.07,193.06,39.20229682]
[1753677679243,0.03,193.07,193.06,38.68432314]
[1753677680036,0.03,193.07,193.06,43.86406]
[1753677680240,0.03,193.11,193.1,16.78468397]
[1753677680537,0.03,193.18,193.1,16.78468397]
[1753677680538,0.03,193.18,193.13,26.28432314]
[1753677680734,0.03,193.18,193.13,72.89559234]
[1753677680970,0.03,193.18,193.13,65.86210908]
[1753677681260,0.03,193.18,193.13,92.01477631]
[1753677682043,0.03,193.18,193.13,99.81815336]
[1753677684247,0.03,193.18,193.13,92.0846701]
[1753677684450,0.03,193.18,193.13,80.40795181]
[1753677684642,0.03,193.18,193.13,72.67446855]
[1753677684969,0.03,193.18,193.13,71.03996855]
[1753677685143,0.03,193.18,193.13,78.77345181]
[1753677685545,0.03,193.18,193.13,72.6112692]
[1753677685881,0.03,193.18,193.13,73.42343077]
[1753677686062,0.03,193.18,193.13,73.56559234]
[1753677687073,0.03,193.18,193.13,78.74345181]
[1753677687973,8.42348326,193.16,193.1,8.92134965]
[1753677688276,7.73348326,193.13,193.07,8.92143011]
[1753677688458,7.73348326,193.12,193.08,38.3]
[1753677688972,8.42348326,193.13,193.09,0.28432314]
[1753677690073,0.69,193.13,193.09,0.28432314]
[1753677691075,8.42348326,193.12,193.08,64.3]
[1753677691310,8.42348326,193.12,193.08,38.3]
[1753677692973,8.42348326,193.11,193.08,38.3]
[1753677693276,8.42348326,193.11,193.06,69.7040234]
[1753677693581,7.73348326,193.1,193.06,64.24]
[1753677693774,8.42348326,193.1,193.06,26.0]
[1753677693958,7.73348326,193.09,193.06,26.0]
[1753677694363,5.86844429,193.11,193.06,26.0]
[1753677694581,0.69,193.11,193.06,26.67]
[1753677694761,7.73348326,193.11,193.07,0.67]
[1753677695362,7.73348326,193.1,193.07,0.67]
[1753677695561,5.86785947,193.13,193.07,0.67]
[1753677695773,7.73348326,193.1,193.07,0.67]
[1753677697560,7.73348326,193.1,193.06,31.17972025]
[1753677697980,8.42348326,193.1,193.06,31.17972025]
[1753677698377,0.69,193.09,193.05,0.28432314]
[1753677698685,7.73348326,193.09,193.05,0.28432314]
[1753677698991,4.83328361,193.09,193.05,0.28432314]
[1753677699179,4.83328361,193.06,193.01,88.3]
[1753677699379,4.83328361,193.04,193.0,43.99130423]
[1753677699577,4.83328361,193.04,193.01,0.28432314]
[1753677699766,4.83328361,193.04,193.0,43.97130423]
[1753677699968,4.83328361,193.05,193.01,0.28432314]
[1753677700168,4.83328361,193.06,193.01,0.67]
[1753677700469,5.52328361,193.05,193.0,69.30130423]
[1753677700662,5.52328361,193.05,193.0,69.97130423]
[1753677700863,5.52328361,193.05,193.01,0.28432314]
[1753677700864,8.42703183,193.05,193.01,0.28432314]
[1753677701173,7.73703183,193.04,193.01,0.28432314]
[1753677701776,7.73703183,193.03,193.0,26.0]
[1753677701981,7.73703183,193.04,193.0,31.85125749]
[1753677702387,5.8697942,193.06,193.0,31.85125749]
[1753677702663,7.73703183,193.04,193.0,31.85125749]
[1753677703479,7.73703183,193.01,192.99,0.2]
[1753677703679,5.18017049,193.05,192.99,0.2]
[1753677703680,7.73703183,193.02,192.99,0.87]
[1753677705892,20.24176459,193.09,193.02,0.28432314]
[1753677706193,7.73703183,193.1,193.04,8.02135497]
[1753677706487,44.1881,193.14,193.09,8.02135497]
[1753677706488,0.03,193.14,193.09,8.02135497]
[1753677706684,0.03,193.14,193.09,8.53924818]
[1753677706893,0.03,193.14,193.1,0.67]
[1753677707559,0.03,193.14,193.11,0.67]
[1753677708771,0.03,193.14,193.11,0.28432314]
[1753677709087,0.03,193.14,193.12,0.67]
[1753677709288,0.03,193.14,193.13,0.67]
[1753677709878,0.03,193.14,193.13,6.36564541]
[1753677710188,0.03,193.14,193.13,13.5848913]
[1753677710388,0.03,193.14,193.13,13.86921444]
[1753677712190,0.03,193.14,193.12,88.81781275]
[1753677712388,0.03,193.14,193.12,88.3]
[1753677713783,0.03,193.14,193.11,0.28432314]
[1753677714169,0.03,193.14,193.11,0.95432314]
[1753677715669,0.03,193.14,193.11,0.28432314]
[1753677716693,0.03,193.14,193.11,0.94432314]
[1753677717074,0.03,193.14,193.12,0.66]
[1753677717971,0.03,193.14,193.11,0.28432314]
[1753677718171,0.03,193.14,193.11,0.94432314]
[1753677718983,0.03,193.14,193.12,0.66]
[1753677719683,0.03,193.14,193.13,0.66]
[1753677719981,0.03,193.14,193.12,88.96]
[1753677720181,0.03,193.14,193.12,96.69703183]
[1753677720397,0.03,193.14,193.12,88.3]
[1753677720786,0.03,193.14,193.12,88.96]
[1753677722002,1e-08,193.14,193.13,62.54402417]
[1753677722300,1e-08,193.14,193.13,62.52402417]
[1753677722803,1e-08,193.14,193.13,65.41724328]
[1753677723975,1e-08,193.14,193.13,70.59510275]
[1753677725774,1e-08,193.14,193.13,78.20291878]
[1753677726877,1e-08,193.14,193.13,27.17778594]
[1753677727189,1e-08,193.14,193.13,37.92]
[1753677727384,1e-08,193.14,193.13,38.20432314]
[1753677727598,1e-08,193.14,193.13,46.58727337]
[1753677728193,1e-08,193.14,193.13,52.28291878]
[1753677729308,1e-08,193.14,193.13,0.51778594]
[1753677729611,1e-08,193.14,193.13,63.88]
[1753677729796,1e-08,193.14,193.11,26.14216157]
[1753677730110,1e-08,193.14,193.12,37.9]
[1753677731191,1e-08,193.14,193.11,26.14216157]
[1753677731514,1e-08,193.14,193.12,37.88]
[1753677731898,1e-08,193.14,193.12,38.54]
[1753677732385,1e-08,193.14,193.12,51.44100369]
[1753677732590,1e-08,193.14,193.13,0.66]
[1753677733613,1e-08,193.14,193.12,43.63586621]
[1753677733825,1e-08,193.14,193.12,37.94]
[1753677735318,1e-08,193.14,193.12,43.11811809]
[1753677735510,1e-08,193.14,193.13,0.66]
[1753677735708,1e-08,193.14,193.13,1.46210908]
[1753677736293,1e-08,193.14,193.13,39.28210908]
[1753677736610,1e-08,193.14,193.13,38.10432314]
[1753677736795,1e-08,193.14,193.13,38.76432314]
[1753677737502,1e-08,193.14,193.13,127.06432314]
[1753677737989,1e-08,193.14,193.13,132.24218261]
[1753677738930,1e-08,193.14,193.13,94.42218261]
[1753677739218,1e-08,193.14,193.13,132.22218261]
[1753677741212,1e-08,193.14,193.13,94.42218261]
[1753677741396,1e-08,193.14,193.13,126.34432314]
[1753677741811,1e-08,193.14,193.13,60.66686658]
[1753677741999,1e-08,193.14,193.13,157.20760275]
[1753677742206,1e-08,193.14,193.13,156.68981681]
[1753677744919,1e-08,193.14,193.13,153.79377917]
[1753677745492,1e-08,193.14,193.13,148.96686658]
[1753677745708,1e-08,193.14,193.13,153.79377917]
[1753677747507,0.03,193.18,193.17,42.78468397]
[1753677747725,0.03,193.18,193.17,86.07359842]
[1753677747931,0.03,193.18,193.17,175.03359841]
[1753677748132,0.03,193.18,193.17,174.51591969]
[1753677749247,0.03,193.18,193.17,148.51591969]
[1753677749438,0.03,193.18,193.17,153.69270697]
[1753677750026,0.03,193.18,193.17,120.19745353]
[1753677750222,0.03,193.18,193.17,160.37877843]
[1753677750517,0.03,193.18,193.17,160.35877843]
[1753677751940,0.03,193.2,193.19,43.06900711]
[1753677752128,0.03,193.2,193.19,86.03354483]
[1753677752329,0.03,193.2,193.19,174.99354482]
[1753677752529,0.03,193.2,193.19,174.47591969]
[1753677752852,0.03,193.22,193.21,21.8959197]
[1753677753147,0.03,193.23,193.22,105.3390071]
[1753677753327,0.03,193.23,193.22,110.82591969]
[1753677753525,0.03,193.23,193.22,116.00136736]
[1753677754926,0.03,193.23,193.22,115.34136736]
[1753677755129,0.03,193.23,193.22,152.88136736]
[1753677756526,0.03,193.23,193.22,93.7297708]
[1753677756727,0.03,193.23,193.22,162.07668339]
[1753677757554,0.03,193.23,193.22,179.52136736]
[1753677757750,0.03,193.23,193.22,153.52136736]
[1753677761557,0.1,193.26,193.25,42.78468397]
[1753677761758,0.1,193.26,193.25,174.11338411]
[1753677761973,0.1,193.26,193.25,173.59591969]
[1753677762178,0.1,193.26,193.25,178.77056393]
[1753677764136,0.1,193.26,193.25,179.43056393]
[1753677767746,0.1,193.26,193.25,178.77056393]
[1753677767950,0.1,193.26,193.25,141.31056393]
[1753677768270,0.03,193.3,193.29,42.78468397]
[1753677768445,0.03,193.3,193.29,80.94636444]
[1753677768645,0.03,193.3,193.29,91.26018962]
[1753677769376,0.03,193.3,193.29,96.433763]
[1753677769694,1e-08,193.3,193.29,96.433763]
[1753677770569,1e-08,193.31,193.3,17.06900711]
[1753677770769,1e-08,193.31,193.3,27.38283229]
[1753677770970,1e-08,193.31,193.3,65.12283229]
[1753677771163,1e-08,193.31,193.3,153.36283228]
[1753677771474,1e-08,193.31,193.3,158.53613802]
[1753677771856,1e-08,193.31,193.3,70.29613803]
[1753677778285,1e-08,193.32,193.3,76.55683803]
[1753677778465,0.1,193.43,193.36,16.78468397]
[1753677778676,0.1,193.43,193.42,47.8959197]
[1753677778866,0.1,193.43,193.42,86.79292931]
[1753677779682,0.1,193.43,193.42,89.41552563]
[1753677780051,0.1,193.43,193.42,51.03552563]
[1753677780383,0.1,193.43,193.42,31.68710577]
[1753677780554,0.1,193.43,193.42,91.18169272]
[1753677780758,0.1,193.43,193.42,86.63910327]
[1753677780957,0.1,193.43,193.42,91.98302547]
[1753677781351,0.82,193.43,193.42,91.98302547]
[1753677781572,0.1,193.43,193.42,91.98302547]
[1753677781780,0.82,193.43,193.42,65.20133275]
[1753677782068,5.64691259,193.43,193.42,38.4]
[1753677782475,5.64691259,193.43,193.41,64.46]
[1753677782682,0.72,193.42,193.41,64.46]
[1753677782880,5.54691259,193.42,193.41,38.46]
[1753677783060,0.72,193.42,193.41,38.46]
[1753677783765,0.72,193.42,193.4,38.44]
[1753677783964,0.1,193.43,193.42,43.06900711]
[1753677784188,0.1,193.43,193.42,87.0359197]
[1753677784491,0.1,193.43,193.42,92.20601586]
[1753677785480,0.1,193.43,193.42,91.50601586]
[1753677785772,0.1,193.43,193.42,92.02302547]
[1753677786170,0.82,193.43,193.42,26.0]
[1753677786369,5.64691259,193.43,193.36,4.82691259]
[1753677786570,10.87541259,193.42,193.37,38.42]
[1753677786881,0.72,193.41,193.38,26.0]
[1753677787197,0.72,193.41,193.39,38.70432314]
[1753677787573,0.72,193.41,193.38,64.4]
[1753677787884,0.72,193.4,193.39,0.28432314]
[1753677789867,8.42698158,193.4,193.35,0.51719679]
[1753677790113,8.42698158,193.39,193.37,0.28432314]
[1753677790482,0.72,193.38,193.37,0.28432314]
[1753677790799,0.72,193.38,193.37,0.14216157]
[1753677790974,8.42698158,193.38,193.35,38.32]
[1753677791176,8.42698158,193.37,193.34,64.32]
[1753677791388,0.72,193.36,193.35,26.0]
[1753677791994,0.72,193.36,193.35,26.28432314]
[1753677793896,7.70698158,193.37,193.35,26.28432314]
[1753677794098,8.42698158,193.37,193.35,26.28432314]
[1753677794471,0.72,193.36,193.35,26.28432314]
[1753677795094,7.70698158,193.37,193.35,26.28432314]
[1753677795314,8.42698158,193.37,193.35,26.28432314]
[1753677795897,5.17068655,193.4,193.35,26.28432314]
[1753677795898,0.1,193.43,193.36,63.75598869]
[1753677796119,0.1,193.43,193.41,0.28432314]
[1753677796438,0.1,193.43,193.41,43.7346219]
[1753677797113,0.1,193.43,193.41,38.56432314]
[1753677797271,0.72,193.42,193.41,0.28432314]
[1753677798107,0.72,193.42,193.4,5.45493003]
[1753677798282,0.1,193.43,193.4,5.45493003]
[1753677798490,0.82,193.43,193.4,5.45493003]
[1753677799578,0.82,193.43,193.4,0.28432314]
[1753677799781,0.72,193.42,193.4,0.28432314]
[1753677800193,0.1,193.43,193.4,5.45487597]
[1753677800407,0.82,193.43,193.4,5.45487597]
[1753677800996,0.1,193.43,193.4,5.45487597]
[1753677801584,0.1,193.43,193.4,13.16185755]
[1753677802196,0.1,193.43,193.42,0.28432314]
[1753677803100,0.82,193.43,193.41,0.28432314]
[1753677804412,0.72,193.42,193.4,0.28432314]
[1753677806582,8.37698158,193.41,193.39,88.23999999]
[1753677806778,8.37698158,193.4,193.39,88.23999999]
[1753677807210,8.37698158,193.4,193.35,126.37999999]
[1753677807379,7.7641,193.4,193.35,126.37999999]
[1753677807584,7.7641,193.4,193.35,114.29999999]
[1753677807585,0.67,193.39,193.35,114.29999999]
[1753677807887,8.37698158,193.38,193.36,0.14216157]
[1753677808089,0.67,193.38,193.36,0.28432314]
[1753677808291,8.37698158,193.39,193.36,0.28432314]
[1753677808698,13.54794464,193.39,193.35,114.29999999]
[1753677809011,5.48865541,193.38,193.35,114.29999999]
[1753677809312,4.81865541,193.36,193.35,0.06]
[1753677809685,5.48865541,193.36,193.35,0.06]
[1753677810405,10.66035586,193.36,193.35,0.06]
[1753677811310,13.01165541,193.32,193.31,0.06]
[1753677811819,13.68165541,193.32,193.31,0.06]
[1753677812522,18.85442594,193.32,193.31,0.06]
[1753677812899,21.75377496,193.32,193.31,0.06]
[1753677815510,7.71800443,193.32,193.31,0.06]
[1753677816091,16.10600886,193.32,193.31,1e-08]
[1753677816295,26.0,193.29,193.27,0.06]
[1753677816519,7.71800443,193.28,193.27,0.06]
[1753677816699,12.89184548,193.28,193.27,0.06]
[1753677816903,13.56184548,193.28,193.27,0.06]
[1753677817209,45.79800443,193.28,193.27,0.06]
[1753677817419,50.97184548,193.28,193.27,0.06]
[1753677817621,51.64184548,193.28,193.27,0.06]
[1753677819722,53.19154548,193.28,193.27,0.06]
[1753677822622,33.71800443,193.26,193.23,0.06]
[1753677822794,7.71800443,193.24,193.23,0.06]
[1753677823117,45.71800443,193.24,193.23,0.06]
[1753677823311,46.38800443,193.24,193.23,0.06]
[1753677824415,50.89291645,193.24,193.23,0.06]
[1753677826730,7.71800443,193.24,193.23,0.75]
[1753677826899,45.63800443,193.24,193.23,0.75]
[1753677827504,7.71800443,193.24,193.23,0.75]
[1753677829024,7.71800443,193.25,193.23,0.75]
[1753677829827,7.71800443,193.25,193.24,0.69]
[1753677830134,5.17417525,193.27,193.24,0.69]
[1753677830306,7.71800443,193.25,193.24,0.69]
[1753677830629,7.71800443,193.25,193.23,0.06]
[1753677830927,12.89291645,193.24,193.23,0.06]
[1753677831103,7.71800443,193.24,193.23,0.06]
[1753677834708,45.57800443,193.25,193.23,0.75]
[1753677836415,4.82535067,193.26,193.24,0.69]
[1753677836617,4.82535067,193.27,193.24,0.69]
[1753677836815,42.58535067,193.29,193.24,0.69]
[1753677837016,42.58535067,193.29,193.24,5.86466397]
[1753677837321,42.58535067,193.29,193.25,0.69]
[1753677838114,37.76,193.29,193.26,0.69]
[1753677838325,42.58535067,193.29,193.24,5.17466397]
[1753677838534,42.58535067,193.29,193.27,0.69]
[1753677839107,11.52016964,193.33,193.28,0.69]
[1753677839334,4.82535067,193.3,193.29,0.69]
[1753677840208,37.72,193.32,193.29,0.69]
[1753677840434,4.82535067,193.31,193.29,0.69]
[1753677840932,4.82535067,193.33,193.3,0.69]
[1753677841139,4.82535067,193.33,193.31,0.69]
[1753677841636,4.82535067,193.32,193.28,0.69]
[1753677842003,4.82535067,193.29,193.26,0.69]
[1753677842231,4.82535067,193.3,193.25,0.28432314]
[1753677842455,42.87224464,193.34,193.27,0.97432314]
[1753677842610,4.82535067,193.32,193.28,0.69]
[1753677842805,4.82535067,193.33,193.28,0.69]
[1753677843110,4.85535067,193.33,193.28,0.69]
[1753677843831,4.85535067,193.33,193.28,5.86377077]
[1753677844026,0.03,193.33,193.29,1.49168047]
[1753677844238,4.82535067,193.32,193.28,0.28432314]
[1753677844738,4.82535067,193.3,193.27,88.23999999]
[1753677844936,4.82535067,193.29,193.27,88.23999999]
[1753677845115,4.82535067,193.29,193.26,0.28432314]
[1753677845639,4.82535067,193.29,193.26,0.97432314]
[1753677846712,4.82535067,193.29,193.26,0.28432314]
[1753677847135,4.82535067,193.29,193.26,6.14863827]
[1753677848642,4.82535067,193.29,193.26,0.97432314]
[1753677848823,4.82535067,193.29,193.25,26.0]
[1753677849028,0.67,193.29,193.25,26.0]
[1753677849246,4.82535067,193.28,193.25,26.0]
[1753677849447,4.82535067,193.28,193.25,26.69]
[1753677849934,4.82535067,193.27,193.25,26.0]
[1753677850134,4.82535067,193.26,193.23,89.05]
[1753677850439,4.82535067,193.25,193.24,0.69]
[1753677851039,4.82535067,193.27,193.24,0.69]
[1753677851243,5.84366489,193.29,193.24,0.69]
[1753677851432,4.82535067,193.27,193.24,0.69]
[1753677851628,5.84366489,193.29,193.24,0.69]
[1753677851831,4.82535067,193.27,193.24,0.69]
[1753677852145,4.82535067,193.26,193.24,0.69]
[1753677852830,4.82535067,193.26,193.23,5.23511144]
[1753677853350,4.82535067,193.26,193.23,5.92511144]
[1753677853546,4.82535067,193.26,193.23,0.75]
[1753677853729,4.82535067,193.26,193.23,0.06]
[1753677854231,4.82535067,193.26,193.23,0.75]
[1753677856156,4.82535067,193.26,193.23,0.06]
[1753677856334,4.82535067,193.27,193.24,0.69]
[1753677857454,4.82535067,193.26,193.23,0.06]
[1753677857757,4.82535067,193.26,193.23,0.75]
[1753677858050,5.17392204,193.28,193.23,0.75]
[1753677858353,4.82535067,193.26,193.23,0.75]
[1753677860655,4.82535067,193.26,193.23,5.92515925]
[1753677861378,4.82535067,193.27,193.24,0.69]
[1753677861858,4.82535067,193.27,193.23,5.23515925]
[1753677862566,4.82535067,193.27,193.24,0.69]
[1753677864138,4.82535067,193.28,193.25,0.69]
[1753677864555,4.82535067,193.28,193.23,5.23515925]
[1753677864765,4.85535067,193.27,193.23,5.23515925]
[1753677865063,0.03,193.27,193.24,0.66]
[1753677865278,0.03,193.27,193.25,0.66]
[1753677865447,4.85535067,193.27,193.25,0.66]
[1753677865762,4.85535067,193.27,193.24,0.66]
[1753677865970,0.03,193.27,193.24,0.66]
[1753677866767,0.03,193.27,193.25,0.66]
[1753677867267,0.03,193.27,193.26,5.10967381]
[1753677867446,0.03,193.27,193.26,22.76082123]
[1753677867643,0.03,193.27,193.26,23.42082123]
[1753677867954,0.03,193.27,193.26,28.2461719]
[1753677869339,0.03,193.27,193.26,1.46176078]
[1753677869540,0.03,193.27,193.26,32.28711145]
[1753677870655,0.03,193.27,193.26,37.46148793]
[1753677870840,0.03,193.27,193.26,26.0]
[1753677871043,5.53535067,193.27,193.23,0.06]
[1753677871351,5.50535067,193.26,193.23,0.06]
[1753677871971,0.68,193.25,193.23,0.06]
[1753677872148,4.82535067,193.24,193.23,0.06]
[1753677872474,5.50535067,193.24,193.23,0.06]
[1753677873972,4.82535067,193.24,193.23,0.06]
[1753677875582,0.03,193.27,193.23,0.86216157]
[1753677875747,0.03,193.27,193.24,0.66]
[1753677876168,0.03,193.27,193.25,5.62751224]
[1753677876647,0.03,193.27,193.26,6.28711145]
[1753677876886,0.03,193.27,193.26,1.46176078]
[1753677877045,0.03,193.27,193.25,37.58]
[1753677877248,0.03,193.27,193.25,38.24]
[1753677877948,0.03,193.27,193.25,47.57987346]
[1753677878158,0.03,193.27,193.26,0.66]
[1753677879170,0.03,193.27,193.26,6.28711145]
[1753677879383,0.03,193.27,193.26,0.94432314]
[1753677879558,0.03,193.27,193.26,5.76967381]
[1753677879873,0.03,193.27,193.26,10.94405029]
[1753677880070,0.03,193.27,193.26,0.28432314]
[1753677880270,0.03,193.27,193.26,26.0]
[1753677881253,0.03,193.27,193.25,0.28432314]
[1753677881477,5.50535067,193.26,193.23,37.66]
[1753677881784,0.68,193.25,193.23,0.34432314]
[1753677881987,0.03,193.27,193.23,5.51943175]
[1753677882160,4.82535067,193.26,193.23,0.34432314]
[1753677883373,0.68,193.25,193.23,0.06]
[1753677883570,0.68,193.25,193.21,0.06]
[1753677883571,26.0,193.22,193.21,0.06]
[1753677883766,31.50535067,193.22,193.21,0.06]
[1753677883959,5.17571554,193.21,193.19,0.06]
[1753677884167,0.68,193.21,193.19,0.06]
[1753677884561,5.50535067,193.2,193.19,0.06]
[1753677884872,0.68,193.2,193.19,0.06]
[1753677885074,5.50535067,193.2,193.19,0.06]
[1753677885874,4.82535067,193.2,193.19,0.06]
[1753677886553,44.23548092,193.22,193.19,0.06]
[1753677886554,4.82535067,193.21,193.19,0.06]
[1753677886755,8.9369,193.24,193.19,0.72]
[1753677886954,4.82535067,193.23,193.19,0.72]
[1753677887570,4.82535067,193.23,193.2,0.66]
[1753677887768,4.82535067,193.24,193.2,0.66]
[1753677888183,5.50535067,193.23,193.19,0.06]
[1753677888383,4.82535067,193.23,193.19,0.06]
[1753677888582,4.82535067,193.23,193.19,0.72]
[1753677888760,4.82535067,193.2,193.19,0.06]
[1753677888959,5.50535067,193.2,193.19,0.06]
[1753677889192,0.68,193.2,193.19,0.06]
[1753677889498,4.82535067,193.2,193.19,0.06]
[1753677890300,5.50535067,193.2,193.19,0.06]
[1753677891795,4.82535067,193.2,193.19,0.06]
[1753677892589,0.68,193.24,193.19,0.06]
[1753677892590,4.82535067,193.21,193.19,0.06]
[1753677894188,4.82535067,193.22,193.2,0.66]
[1753677894894,4.82535067,193.22,193.19,0.06]
[1753677895199,4.82535067,193.21,193.19,0.06]
[1753677895402,5.50535067,193.2,193.19,0.06]
[1753677896609,0.68,193.22,193.19,0.06]
[1753677896902,4.82535067,193.2,193.19,0.06]
[1753677897808,5.855502,193.22,193.19,0.06]
[1753677898010,0.03,193.26,193.2,0.72]